[Event "Winter Malopolska Cup Master 2022"]
[Site "Krakow"]
[Date "2022.01.18"]
[Round "6.6"]
[White "Kania, Franciszek"]
[Black "Tokarz, Izabela"]
[Result "0-1"]
[ECO "B76"]
[WhiteElo "1528"]
[BlackElo "1728"]
[Annotator "NA RC"]
[PlyCount "122"]
[EventDate "2022.01.15"]
[EventType "swiss"]
[EventCountry "POL"]
[SourceTitle "playchess.com"]
[Source "ChessBase"]
[SourceQuality "1"]
[TimeControl "5400+30"]

1. e4 {[%emt 0:00:03]} c5 {[%emt 0:03:08]} 2. Nf3 {[%emt 0:00:14]} d6 {[%emt 0:00:04]} 3. d4 {[%emt 0:00:19]} cxd4 {[%emt 0:00:04]} 4. Nxd4 {[%emt 0:00:09]} Nf6 {[%emt 0:00:05]} 5. Nc3 {[%emt 0:00:08]} g6 {[%emt 0:00:08]} 6. f3 {[%emt 0:00:54]} Bg7 {[%emt 0:00:05]} 7. Be3 {[%emt 0:00:08]} O-O {[%emt 0:00:03]} 8. Bc4 {[%emt 0:00:23]} Nc6 {[%emt 0:00:04]} 9. Bb3 {[%emt 0:00:07]} Bd7 {[%emt 0:03:04]} 10. Qd2 {[%emt 0:03:40]} Rc8 {[%emt 0:00:08]} 11. O-O-O {[%emt 0:01:15]} Nxd4 {[%emt 0:00:04]} 12. Bxd4 {[%emt 0:00:11]} b5 {[%emt 0:00:05]} 13. Nd5 {[%emt 0:03:19]} Nxd5 {[%emt 0:20:35]} 14. Bxg7 {[%emt 0:04:07]} Kxg7 {[%emt 0:01:40]} 15. Bxd5 {[%emt 0:01:57]} Rc5 {[%emt 0:15:52]} 16. h4 {[%emt 0:06:53]} h5 {[%emt 0:00:56]} 17. g4 {[%emt 0:09:08]} Rh8 {[%emt 0:02:18]} 18. Qf4 {[%emt 0:03:40]} Be6 {[%emt 0:05:47]} 19. Bxe6 {[%emt 0:02:28]} fxe6 {[%emt 0:00:08]} 20. gxh5 {[%emt 0:00:13]} Rcxh5 {[%emt 0:01:57]} 21. Qg4 {[%emt 0:09:03]} e5 {[%emt 0:04:45]} 22. Rdg1 {[%emt 0:13:57]} Qe8 {[%emt 0:06:56]} 23. Qe6 {[%emt 0:14:13]} Qf7 {[%emt 0:01:21]} 24. Qd7 {[%emt 0:02:35]} a6 {[%emt 0:01:15]} 25. Rg4 {[%emt 0:00:53]} R8h6 {[%emt 0:03:28]} 26. f4 {[%emt 0:07:41]} exf4 {[%emt 0:00:46]} 27. Rf1 {[%emt 0:00:47]} f3 {[%emt 0:03:15]} 28. Rg3 {[%emt 0:02:12]} f2 {[%emt 0:00:35]} 29. Rg2 {[%emt 0:00:58]} Qf4+ {[%emt 0:01:34]} 30. Kb1 {[%emt 0:00:23]} Qxe4 {[%emt 0:02:14]} 31. Rgxf2 {[%emt 0:00:21]} Rf5 {[%emt 0:00:36]} 32. Rxf5 {[%emt 0:01:31]} gxf5 {[%emt 0:00:05]} 33. Qe8 {[%emt 0:01:12]} Rxh4 {[%emt 0:00:44]} 34. a4 {[%emt 0:01:00]} Rh1 {[%emt 0:00:57]} 35. Rxh1 {[%emt 0:00:18]} Qxh1+ {[%emt 0:00:02]} 36. Ka2 {[%emt 0:00:05]} Qd5+ {[%emt 0:00:14]} 37. b3 {[%emt 0:00:09]} Qe5 {[%emt 0:00:42]} 38. a5 {[%emt 0:00:12]} b4 {[%emt 0:00:17]} 39. Qd8 {[%emt 0:00:23]} Qe2 {[%emt 0:00:37]} 40. Kb2 {[%emt 0:00:19]} f4 {[%emt 0:00:20]} 41. Qd7 {[%emt 0:00:32]} Kf6 {[%emt 0:02:16]} 42. Qe8 {[%emt 0:00:35]} Qe5+ {[%emt 0:04:49]} 43. Kb1 {[%emt 0:00:17]} Qe1+ {[%emt 0:00:10]} 44. Ka2 {[%emt 0:00:25]} Qc3 {[%emt 0:02:38]} 45. Qf8+ {[%emt 0:00:54]} Ke6 {[%emt 0:00:09]} 46. Qg8+ {[%emt 0:00:51]} Kd7 {[%emt 0:00:12]} 47. Qg4+ {[%emt 0:00:11]} Kc7 {[%emt 0:00:16]} 48. Qf5 {[%emt 0:00:07]} Qe5 {[%emt 0:01:23]} 49. Qf8 {[%emt 0:00:35]} Qxa5+ {[%emt 0:00:08]} 50. Kb1 {[%emt 0:00:12]} Qe5 {[%emt 0:01:12]} 51. Qa8 {[%emt 0:00:13]} a5 {[%emt 0:00:55]} 52. Qa7+ {[%emt 0:00:13]} Kc6 {[%emt 0:00:58]} 53. Qa8+ {[%emt 0:00:06]} Kd7 {[%emt 0:00:15]} 54. Qb7+ {[%emt 0:00:04]} Ke6 {[%emt 0:00:06]} 55. Qc8+ {[%emt 0:00:05]} Kf7 {[%emt 0:00:06]} 56. Qg4 {[%emt 0:00:07]} Qf6 {[%emt 0:00:56]} 57. Qh5+ {[%emt 0:00:08]} Kf8 {[%emt 0:00:05]} 58. Qxa5 {[%emt 0:00:29]} f3 {[%emt 0:00:15]} 59. Qb5 {[%emt 0:00:05]} f2 {[%emt 0:00:11]} 60. Qf1 {[%emt 0:00:04]} Qf3 {[%emt 0:00:07]} 61. c3 {[%emt 0:00:05]} Qe3 {[%emt 0:00:16]} 0-1

[Event "Winter Malopolska Cup Master 2022"]
[Site "Krakow"]
[Date "2022.01.19"]
[Round "8.1"]
[White "Golenia, Wojciech"]
[Black "Szopa, Emilia"]
[Result "1-0"]
[ECO "A22"]
[WhiteElo "2059"]
[BlackElo "1588"]
[Annotator "ChessBase"]
[PlyCount "133"]
[EventDate "2022.01.15"]
[EventType "swiss"]
[EventCountry "POL"]
[SourceTitle "playchess.com"]
[Source "ChessBase"]
[SourceQuality "1"]
[TimeControl "5400+30"]

1. c4 {[%emt 0:08:41]} e5 {[%emt 0:01:05]} 2. Nc3 {[%emt 0:01:30]} Nf6 {[%emt 0:00:31]} 3. g3 {[%emt 0:00:23]} c6 {[%emt 0:01:54]} 4. d4 {[%emt 0:03:58]} exd4 {[%emt 0:04:12]} 5. Qxd4 {[%emt 0:00:19]} d5 {[%emt 0:00:14]} 6. Bg2 {[%emt 0:00:43]} dxc4 {[%emt 0:10:21]} 7. Qxc4 {[%emt 0:07:10]} Be6 {[%emt 0:03:43]} 8. Qa4 {[%emt 0:02:31]} Bd6 {[%emt 0:01:27]} 9. Nf3 {[%emt 0:04:41]} h6 {[%emt 0:01:47]} 10. O-O {[%emt 0:09:47]} O-O {[%emt 0:08:07]} 11. Rd1 {[%emt 0:06:01]} Qe7 {[%emt 0:05:43]} 12. Nd4 {[%emt 0:02:02]} Bd7 {[%emt 0:05:37]} 13. Qc2 {[%emt 0:06:56]} Bc7 {[%emt 0:08:41]} 14. Nf5 {[%emt 0:03:57]} Qc5 {[%emt 0:02:20]} 15. e4 {[%emt 0:06:09]} Bxf5 {[%emt 0:12:42]} 16. exf5 {[%emt 0:00:23]} Nbd7 {[%emt 0:02:10]} 17. Be3 {[%emt 0:01:43]} Qe7 {[%emt 0:00:54]} 18. Re1 {[%emt 0:01:21]} Qd8 {[%emt 0:04:29]} 19. Rad1 {[%emt 0:00:56]} Bb6 {[%emt 0:00:28]} 20. Bf4 {[%emt 0:04:35]} Re8 {[%emt 0:06:05]} 21. Ne4 {[%emt 0:04:51]} Nxe4 {[%emt 0:01:43]} 22. Bxe4 {[%emt 0:00:26]} Qc8 {[%emt 0:01:41]} 23. Bf3 {[%emt 0:01:40]} Nf6 {[%emt 0:02:27]} 24. Be5 {[%emt 0:01:44]} Nd5 {[%emt 0:01:33]} 25. b3 {[%emt 0:04:14]} Ba5 {[%emt 0:03:17]} 26. Re2 {[%emt 0:00:53]} Nb4 {[%emt 0:01:52]} 27. Qb1 {[%emt 0:01:18]} Bc7 {[%emt 0:02:31]} 28. Bb2 {[%emt 0:01:45]} Rxe2 {[%emt 0:00:42]} 29. Bxe2 {[%emt 0:00:02]} Qe8 {[%emt 0:00:30]} 30. Re1 {[%emt 0:00:30]} Nd5 {[%emt 0:00:50]} 31. f6 {[%emt 0:01:44]} Ba5 {[%emt 0:01:02]} 32. fxg7 {[%emt 0:04:01]} Bxe1 {[%emt 0:00:42]} 33. Qxe1 {[%emt 0:01:19]} Qe4 {[%emt 0:00:29]} 34. Qd2 {[%emt 0:02:05]} Re8 {[%emt 0:01:26]} 35. Qxh6 {[%emt 0:00:58]} Qh7 {[%emt 0:00:24]} 36. Qd2 {[%emt 0:00:38]} f6 {[%emt 0:00:31]} 37. Bf3 {[%emt 0:01:32]} Qxg7 {[%emt 0:00:59]} 38. h4 {[%emt 0:00:53]} Qe7 {[%emt 0:00:46]} 39. Kg2 {[%emt 0:00:54]} Rd8 {[%emt 0:00:46]} 40. Qc2 {[%emt 0:01:23]} Qg7 {[%emt 0:00:54]} 41. Qe4 {[%emt 0:00:40]} Ne7 {[%emt 0:01:03]} 42. Bh5 {[%emt 0:01:19]} Nd5 {[%emt 0:00:35]} 43. Bf3 {[%emt 0:00:21]} Ne7 {[%emt 0:00:10]} 44. h5 {[%emt 0:00:37]} Re8 {[%emt 0:00:59]} 45. Qe6+ {[%emt 0:01:26]} Qf7 {[%emt 0:00:06]} 46. Qg4+ {[%emt 0:00:10]} Qg7 {[%emt 0:00:14]} 47. Qd7 {[%emt 0:00:20]} Qf7 {[%emt 0:00:53]} 48. Qxb7 {[%emt 0:00:31]} Qe6 {[%emt 0:00:43]} 49. Qxa7 {[%emt 0:01:19]} Nf5 {[%emt 0:00:50]} 50. Qc5 {[%emt 0:00:31]} Rc8 {[%emt 0:00:33]} 51. Qc3 {[%emt 0:00:55]} Kf7 {[%emt 0:00:32]} 52. Qb4 {[%emt 0:00:13]} Rg8 {[%emt 0:00:15]} 53. a4 {[%emt 0:00:38]} c5 {[%emt 0:00:51]} 54. Qf4 {[%emt 0:00:36]} Nd6 {[%emt 0:00:26]} 55. Bxf6 {[%emt 0:00:26]} Rf8 {[%emt 0:00:46]} 56. Be5+ {[%emt 0:01:05]} Ke8 {[%emt 0:00:07]} 57. Qe3 {[%emt 0:00:34]} Nf5 {[%emt 0:01:11]} 58. Qxc5 {[%emt 0:00:12]} Ne7 {[%emt 0:00:28]} 59. a5 {[%emt 0:00:38]} Rxf3 {[%emt 0:00:31]} 60. Kxf3 {[%emt 0:00:37]} Qf5+ {[%emt 0:00:21]} 61. Kg2 {[%emt 0:00:25]} Qe4+ {[%emt 0:00:30]} 62. Kh2 {[%emt 0:00:16]} Qg4 {[%emt 0:00:47]} 63. Bf6 {[%emt 0:00:30]} Nf5 {[%emt 0:00:53]} 64. Qc8+ {[%emt 0:00:07]} Kf7 {[%emt 0:00:04]} 65. Qc4+ {[%emt 0:00:20]} Qxc4 {[%emt 0:00:07]} 66. bxc4 {[%emt 0:00:02]} Kxf6 {[%emt 0:00:07]} 67. a6 {[%emt 0:00:05]} 1-0

[Event "Winter Malopolska Cup Master 2022"]
[Site "Krakow"]
[Date "2022.01.19"]
[Round "8.2"]
[White "Saraev, Yaroslav"]
[Black "Trybus, Daniel"]
[Result "0-1"]
[ECO "E70"]
[WhiteElo "1922"]
[BlackElo "2067"]
[Annotator "ChessBase"]
[PlyCount "92"]
[EventDate "2022.01.15"]
[EventType "swiss"]
[EventCountry "POL"]
[SourceTitle "playchess.com"]
[Source "ChessBase"]
[SourceQuality "1"]
[TimeControl "5400+30"]

1. d4 {[%emt 0:06:13]} Nf6 {[%emt 0:00:03]} 2. c4 {[%emt 0:00:04]} g6 {[%emt 0:00:04]} 3. Nc3 {[%emt 0:00:03]} Bg7 {[%emt 0:00:03]} 4. e4 {[%emt 0:00:04]} d6 {[%emt 0:00:07]} 5. Nge2 {[%emt 0:00:03]} O-O {[%emt 0:00:06]} 6. Ng3 {[%emt 0:00:04]} c5 {[%emt 0:00:31]} 7. d5 {[%emt 0:00:26]} e6 {[%emt 0:00:08]} 8. Be2 {[%emt 0:00:13]} exd5 {[%emt 0:00:48]} 9. cxd5 {[%emt 0:00:08]} Nbd7 {[%emt 0:01:30]} 10. O-O {[%emt 0:00:52]} Re8 {[%emt 0:01:43]} 11. f4 {[%emt 0:05:43]} h5 {[%emt 0:02:48]} 12. Bf3 {[%emt 0:08:55]} a6 {[%emt 0:07:22]} 13. a4 {[%emt 0:00:05]} c4 {[%emt 0:00:52]} 14. Be3 {[%emt 0:04:56]} Qc7 {[%emt 0:09:58]} 15. h4 {[%emt 0:11:47]} Nc5 {[%emt 0:11:14]} 16. f5 {[%emt 0:12:42]} Nd3 {[%emt 0:12:23]} 17. Qd2 {[%emt 0:07:03]} Ne5 {[%emt 0:06:10]} 18. Bg5 {[%emt 0:06:14]} Nfg4 {[%emt 0:06:46]} 19. Bxg4 {[%emt 0:06:51]} Nxg4 {[%emt 0:00:05]} 20. f6 {[%emt 0:00:07]} Bf8 {[%emt 0:00:04]} 21. Kh1 {[%emt 0:06:04]} Rb8 {[%emt 0:01:45]} 22. Nd1 {[%emt 0:06:15]} b5 {[%emt 0:04:03]} 23. Nf2 {[%emt 0:04:08]} Kh7 {[%emt 0:02:21]} 24. Nxg4 {[%emt 0:05:54]} Bxg4 {[%emt 0:00:10]} 25. axb5 {[%emt 0:02:58]} axb5 {[%emt 0:00:15]} 26. Ra6 {[%emt 0:02:46]} Ra8 {[%emt 0:02:36]} 27. Rc6 {[%emt 0:00:14]} Qa7 {[%emt 0:01:20]} 28. Be3 {[%emt 0:00:48]} Qd7 {[%emt 0:01:57]} 29. Qf2 {[%emt 0:01:34]} Rec8 {[%emt 0:02:02]} 30. Rb6 {[%emt 0:00:06]} Rab8 {[%emt 0:00:34]} 31. Ra6 {[%emt 0:00:37]} b4 {[%emt 0:00:36]} 32. Ra7 {[%emt 0:00:34]} Rc7 {[%emt 0:00:29]} 33. Rc1 {[%emt 0:00:56]} Rbc8 {[%emt 0:01:54]} 34. Nf1 {[%emt 0:00:33]} Rxa7 {[%emt 0:00:40]} 35. Bxa7 {[%emt 0:00:06]} Qa4 {[%emt 0:01:36]} 36. Bd4 {[%emt 0:00:30]} Qb3 {[%emt 0:01:43]} 37. Nh2 {[%emt 0:01:09]} Bh6 {[%emt 0:00:35]} 38. Ra1 {[%emt 0:00:29]} c3 {[%emt 0:00:39]} 39. Nxg4 {[%emt 0:00:08]} hxg4 {[%emt 0:00:09]} 40. h5 {[%emt 0:00:57]} c2 {[%emt 0:02:51]} 41. hxg6+ {[%emt 0:00:05]} fxg6 {[%emt 0:00:08]} 42. Ra7+ {[%emt 0:00:24]} Kg8 {[%emt 0:00:03]} 43. f7+ {[%emt 0:00:28]} Kf8 {[%emt 0:00:01]} 44. Qf6 {[%emt 0:00:14]} c1=Q+ {[%emt 0:00:44]} 45. Bg1 {[%emt 0:00:40]} Qxg1+ {[%emt 0:00:14]} 46. Kxg1 {[%emt 0:00:05]} Qe3+ {[%emt 0:00:04]} 0-1

[Event "Winter Malopolska Cup Master 2022"]
[Site "Krakow"]
[Date "2022.01.19"]
[Round "8.3"]
[White "Kyc, Jerzy"]
[Black "Nowak, Maciej"]
[Result "1-0"]
[ECO "C04"]
[WhiteElo "2250"]
[BlackElo "2005"]
[Annotator "ChessBase"]
[PlyCount "73"]
[EventDate "2022.01.15"]
[EventType "swiss"]
[EventCountry "POL"]
[SourceTitle "playchess.com"]
[Source "ChessBase"]
[SourceQuality "1"]
[TimeControl "5400+30"]

1. e4 {[%emt 0:09:23]} e6 {[%emt 0:00:04]} 2. d4 {[%emt 0:00:22]} d5 {[%emt 0:00:05]} 3. Nd2 {[%emt 0:00:04]} Nc6 {[%emt 0:00:04]} 4. Ngf3 {[%emt 0:00:04]} Nf6 {[%emt 0:00:05]} 5. e5 {[%emt 0:00:05]} Nd7 {[%emt 0:00:03]} 6. Be2 {[%emt 0:00:05]} f6 {[%emt 0:01:08]} 7. exf6 {[%emt 0:00:04]} Qxf6 {[%emt 0:00:14]} 8. Nf1 {[%emt 0:00:03]} e5 {[%emt 0:04:28]} 9. dxe5 {[%emt 0:00:09]} Ndxe5 {[%emt 0:00:05]} 10. Ng3 {[%emt 0:03:29]} Bd6 {[%emt 0:04:10]} 11. O-O {[%emt 0:03:22]} O-O {[%emt 0:02:24]} 12. Qxd5+ {[%emt 0:09:31]} Be6 {[%emt 0:00:08]} 13. Qe4 {[%emt 0:00:49]} Rae8 {[%emt 0:07:43]} 14. Ng5 {[%emt 0:01:39]} Ng6 {[%emt 0:04:11]} 15. Nxe6 {[%emt 0:00:19]} Rxe6 {[%emt 0:00:10]} 16. Bc4 {[%emt 0:00:07]} Rfe8 {[%emt 0:01:45]} 17. Qf5 {[%emt 0:03:13]} Kf8 {[%emt 0:03:56]} 18. Bxe6 {[%emt 0:00:16]} Rxe6 {[%emt 0:00:34]} 19. Qxf6+ {[%emt 0:00:07]} gxf6 {[%emt 0:00:10]} 20. Bh6+ {[%emt 0:00:15]} Kf7 {[%emt 0:00:15]} 21. Rfe1 {[%emt 0:00:22]} Be5 {[%emt 0:00:34]} 22. c3 {[%emt 0:00:32]} Na5 {[%emt 0:00:28]} 23. Rad1 {[%emt 0:00:25]} Re7 {[%emt 0:01:26]} 24. Nf5 {[%emt 0:00:30]} Re6 {[%emt 0:03:12]} 25. Rd7+ {[%emt 0:00:16]} Ke8 {[%emt 0:00:42]} 26. Rxh7 {[%emt 0:00:15]} Bxh2+ {[%emt 0:01:11]} 27. Kf1 {[%emt 0:00:08]} Rxe1+ {[%emt 0:00:48]} 28. Kxe1 {[%emt 0:00:02]} Be5 {[%emt 0:00:31]} 29. g3 {[%emt 0:00:39]} Nc4 {[%emt 0:00:46]} 30. f4 {[%emt 0:00:10]} Bd6 {[%emt 0:00:10]} 31. Nxd6+ {[%emt 0:00:07]} Nxd6 {[%emt 0:00:21]} 32. Rxc7 {[%emt 0:00:17]} Nf5 {[%emt 0:00:05]} 33. Bg7 {[%emt 0:00:34]} Nxg3 {[%emt 0:00:23]} 34. Bxf6 {[%emt 0:00:14]} Nxf4 {[%emt 0:00:02]} 35. Rxb7 {[%emt 0:00:11]} Nd3+ {[%emt 0:00:38]} 36. Kd1 {[%emt 0:00:21]} Ne4 {[%emt 0:00:06]} 37. Bd4 {[%emt 0:00:41]} 1-0

[Event "Winter Malopolska Cup Master 2022"]
[Site "Krakow"]
[Date "2022.01.19"]
[Round "8.4"]
[White "Mirski, Michal"]
[Black "Kania, Franciszek"]
[Result "1/2-1/2"]
[ECO "B38"]
[WhiteElo "2039"]
[BlackElo "1528"]
[Annotator "ChessBase"]
[PlyCount "88"]
[EventDate "2022.01.15"]
[EventType "swiss"]
[EventCountry "POL"]
[SourceTitle "playchess.com"]
[Source "ChessBase"]
[SourceQuality "1"]
[TimeControl "5400+30"]

1. e4 {[%emt 0:22:28]} c5 {[%emt 0:00:34]} 2. Nf3 {[%emt 0:01:06]} g6 {[%emt 0:00:13]} 3. d4 {[%emt 0:02:23]} cxd4 {[%emt 0:00:14]} 4. Nxd4 {[%emt 0:00:14]} Bg7 {[%emt 0:00:14]} 5. c4 {[%emt 0:01:21]} Nc6 {[%emt 0:00:19]} 6. Be3 {[%emt 0:00:56]} Nf6 {[%emt 0:00:34]} 7. Nc3 {[%emt 0:00:35]} O-O {[%emt 0:00:32]} 8. Be2 {[%emt 0:01:56]} d6 {[%emt 0:00:21]} 9. O-O {[%emt 0:01:10]} Bd7 {[%emt 0:00:37]} 10. f3 {[%emt 0:02:23]} Nxd4 {[%emt 0:02:03]} 11. Bxd4 {[%emt 0:00:42]} a5 {[%emt 0:00:16]} 12. Nd5 {[%emt 0:16:58]} Nxd5 {[%emt 0:05:44]} 13. cxd5 {[%emt 0:01:58]} a4 {[%emt 0:04:33]} 14. Bxg7 {[%emt 0:02:55]} Kxg7 {[%emt 0:00:17]} 15. Qd4+ {[%emt 0:00:03]} f6 {[%emt 0:01:11]} 16. a3 {[%emt 0:04:01]} Qa5 {[%emt 0:01:39]} 17. Rac1 {[%emt 0:05:38]} Rac8 {[%emt 0:00:29]} 18. Kf2 {[%emt 0:01:26]} Bb5 {[%emt 0:09:29]} 19. Bxb5 {[%emt 0:11:24]} Qxb5 {[%emt 0:00:08]} 20. Qb4 {[%emt 0:03:05]} Qxb4 {[%emt 0:06:37]} 21. axb4 {[%emt 0:00:04]} Kf7 {[%emt 0:22:38]} 22. Ke3 {[%emt 0:04:13]} b5 {[%emt 0:05:13]} 23. Kd4 {[%emt 0:01:56]} e5+ {[%emt 0:09:33]} 24. dxe6+ {[%emt 0:00:40]} Kxe6 {[%emt 0:01:49]} 25. h4 {[%emt 0:02:56]} f5 {[%emt 0:10:05]} 26. exf5+ {[%emt 0:01:58]} gxf5 {[%emt 0:00:13]} 27. Rfe1+ {[%emt 0:01:14]} Kd7 {[%emt 0:00:41]} 28. Rc3 {[%emt 0:05:19]} Rxc3 {[%emt 0:01:13]} 29. bxc3 {[%emt 0:00:14]} Rg8 {[%emt 0:00:39]} 30. Re2 {[%emt 0:00:17]} Kc6 {[%emt 0:04:00]} 31. Rd2 {[%emt 0:00:52]} Re8 {[%emt 0:03:37]} 32. c4 {[%emt 0:01:32]} f4 {[%emt 0:00:57]} 33. cxb5+ {[%emt 0:02:24]} Kxb5 {[%emt 0:00:21]} 34. Kc3 {[%emt 0:00:37]} Re3+ {[%emt 0:00:52]} 35. Kb2 {[%emt 0:00:10]} Kxb4 {[%emt 0:02:43]} 36. Rd4+ {[%emt 0:00:11]} Kb5 {[%emt 0:03:36]} 37. Rxf4 {[%emt 0:00:40]} Re2+ {[%emt 0:00:25]} 38. Ka3 {[%emt 0:00:33]} Re3+ {[%emt 0:00:26]} 39. Kb2 {[%emt 0:00:15]} Re2+ {[%emt 0:00:04]} 40. Ka3 {[%emt 0:00:19]} Re3+ {[%emt 0:00:07]} 41. Kb2 {[%emt 0:00:06]} Re2+ {[%emt 0:00:05]} 42. Ka3 Rxg2 43. Rxa4 Ra2+ 44. Kxa2 Kxa4 1/2-1/2

[Event "Winter Malopolska Cup Master 2022"]
[Site "Krakow"]
[Date "2022.01.19"]
[Round "8.5"]
[White "Owoc, Jakub"]
[Black "Tokarz, Izabela"]
[Result "0-1"]
[ECO "B76"]
[WhiteElo "1701"]
[BlackElo "1728"]
[Annotator "NA"]
[PlyCount "116"]
[EventDate "2022.01.15"]
[EventType "swiss"]
[EventCountry "POL"]
[SourceTitle "playchess.com"]
[Source "ChessBase"]
[SourceQuality "1"]
[TimeControl "5400+30"]

1. e4 {[%emt 0:00:03]} c5 {[%emt 0:00:05]} 2. Nf3 {[%emt 0:00:04]} d6 {[%emt 0:00:05]} 3. d4 {[%emt 0:00:06]} cxd4 {[%emt 0:00:03]} 4. Nxd4 {[%emt 0:00:05]} Nf6 {[%emt 0:00:06]} 5. Nc3 {[%emt 0:00:06]} g6 {[%emt 0:00:06]} 6. Be3 {[%emt 0:00:07]} Bg7 {[%emt 0:00:05]} 7. f3 {[%emt 0:00:05]} O-O {[%emt 0:00:05]} 8. Qd2 {[%emt 0:00:02]} Nc6 {[%emt 0:00:05]} 9. O-O-O {[%emt 0:00:06]} d5 {[%emt 0:01:02]} 10. Nxc6 {[%emt 0:00:06]} bxc6 {[%emt 0:00:05]} 11. Bh6 {[%emt 0:00:03]} Be6 {[%emt 0:16:43]} 12. Bxg7 {[%emt 0:06:01]} Kxg7 {[%emt 0:00:08]} 13. h4 {[%emt 0:00:06]} h5 {[%emt 0:02:27]} 14. Be2 {[%emt 0:00:38]} dxe4 {[%emt 0:03:36]} 15. Qxd8 {[%emt 0:05:37]} Rfxd8 {[%emt 0:00:21]} 16. Nxe4 {[%emt 0:00:16]} Nxe4 {[%emt 0:00:59]} 17. fxe4 {[%emt 0:00:07]} Rdb8 {[%emt 0:01:58]} 18. b3 {[%emt 0:01:26]} a5 {[%emt 0:07:51]} 19. Rd3 {[%emt 0:09:20]} Rb4 {[%emt 0:07:31]} 20. Bf3 {[%emt 0:00:28]} c5 {[%emt 0:00:42]} 21. Rc3 {[%emt 0:04:22]} Rc8 {[%emt 0:00:58]} 22. Rd1 {[%emt 0:05:40]} c4 {[%emt 0:02:57]} 23. Kb2 {[%emt 0:00:34]} cxb3 {[%emt 0:08:21]} 24. cxb3 {[%emt 0:03:37]} Rcb8 {[%emt 0:02:01]} 25. Rdd3 {[%emt 0:00:15]} a4 {[%emt 0:02:36]} 26. Re3 {[%emt 0:01:05]} Kf6 {[%emt 0:01:35]} 27. g3 {[%emt 0:00:27]} Kg7 {[%emt 0:06:23]} 28. Bd1 {[%emt 0:02:06]} Rd8 {[%emt 0:01:59]} 29. Bc2 {[%emt 0:00:13]} axb3 {[%emt 0:08:16]} 30. axb3 {[%emt 0:00:38]} f6 {[%emt 0:01:02]} 31. Ka3 {[%emt 0:06:02]} Rdd4 {[%emt 0:01:01]} 32. Re2 {[%emt 0:00:44]} Rb5 {[%emt 0:06:28]} 33. Kb2 {[%emt 0:02:00]} Kf7 {[%emt 0:00:14]} 34. Kc1 {[%emt 0:01:33]} Re5 {[%emt 0:01:56]} 35. Rd2 {[%emt 0:00:41]} Rb4 {[%emt 0:00:36]} 36. Kb2 {[%emt 0:00:41]} g5 {[%emt 0:03:59]} 37. hxg5 {[%emt 0:00:27]} Rxg5 {[%emt 0:05:31]} 38. Rf3 {[%emt 0:02:22]} Bc8 {[%emt 0:01:48]} 39. Kc3 {[%emt 0:05:30]} Rb6 {[%emt 0:00:26]} 40. Rd4 {[%emt 0:03:10]} Bb7 {[%emt 0:03:49]} 41. Bd3 {[%emt 0:00:30]} Re5 {[%emt 0:01:55]} 42. b4 {[%emt 0:05:15]} Kg7 {[%emt 0:01:15]} 43. b5 {[%emt 0:01:45]} Bc8 {[%emt 0:01:56]} 44. Kb4 {[%emt 0:01:21]} Rb8 {[%emt 0:00:52]} 45. Be2 {[%emt 0:01:38]} Bg4 {[%emt 0:00:12]} 46. Rf2 {[%emt 0:01:37]} Bxe2 {[%emt 0:00:03]} 47. Rxe2 {[%emt 0:00:04]} Rexb5+ {[%emt 0:00:29]} 48. Kc4 {[%emt 0:00:21]} Rb4+ {[%emt 0:00:11]} 49. Kd3 {[%emt 0:00:47]} Rb3+ {[%emt 0:00:06]} 50. Kd2 {[%emt 0:00:07]} Rxg3 {[%emt 0:00:08]} 51. Ke1 {[%emt 0:00:14]} Rb5 {[%emt 0:00:49]} 52. Kf2 {[%emt 0:00:14]} Rbg5 {[%emt 0:00:25]} 53. Re1 {[%emt 0:02:56]} h4 {[%emt 0:01:00]} 54. Rh1 {[%emt 0:03:21]} h3 {[%emt 0:00:15]} 55. e5 Rg2+ {[%emt 0:00:14]} 56. Kf1 {[%emt 0:00:31]} Rf5+ {[%emt 0:00:09]} 57. Ke1 {[%emt 0:00:09]} Rxe5+ {[%emt 0:00:04]} 58. Kd1 {[%emt 0:00:04]} Ra5 {[%emt 0:00:17]} 0-1

[Event "Winter Malopolska Cup Master 2022"]
[Site "Krakow"]
[Date "2022.01.19"]
[Round "8.6"]
[White "Klementys, Jerzy"]
[Black "Czaplak, Lukasz"]
[Result "0-1"]
[ECO "D66"]
[WhiteElo "1564"]
[BlackElo "1877"]
[Annotator "NA"]
[PlyCount "105"]
[EventDate "2022.01.15"]
[EventType "swiss"]
[EventCountry "POL"]
[SourceTitle "playchess.com"]
[Source "ChessBase"]
[SourceQuality "1"]
[TimeControl "5400+30"]

1. d4 {[%emt 0:00:01]} d5 {[%emt 0:00:04]} 2. c4 {[%emt 0:00:05]} e6 {[%emt 0:00:02]} 3. Nc3 {[%emt 0:00:08]} Nf6 {[%emt 0:00:03]} 4. Bg5 {[%emt 0:00:08]} Nbd7 {[%emt 0:00:13]} 5. e3 {[%emt 0:00:32]} Be7 {[%emt 0:00:04]} 6. Nf3 {[%emt 0:00:07]} c6 {[%emt 0:00:15]} 7. Rc1 {[%emt 0:00:46]} O-O {[%emt 0:00:28]} 8. Bd3 {[%emt 0:00:12]} dxc4 {[%emt 0:00:28]} 9. Bxc4 {[%emt 0:00:04]} b5 {[%emt 0:00:20]} 10. Bd3 {[%emt 0:00:02]} Bb7 {[%emt 0:01:11]} 11. O-O {[%emt 0:00:06]} a6 {[%emt 0:00:23]} 12. e4 {[%emt 0:03:22]} c5 {[%emt 0:05:27]} 13. e5 {[%emt 0:04:27]} Nd5 {[%emt 0:01:52]} 14. Bxe7 {[%emt 0:01:10]} Qxe7 {[%emt 0:00:12]} 15. dxc5 {[%emt 0:02:20]} Nxc5 {[%emt 0:01:16]} 16. Nxd5 {[%emt 0:01:04]} Bxd5 {[%emt 0:00:02]} 17. Bb1 {[%emt 0:05:02]} g6 {[%emt 0:06:06]} 18. Re1 {[%emt 0:07:50]} Rfd8 {[%emt 0:08:28]} 19. Qe2 {[%emt 0:00:54]} Rac8 {[%emt 0:03:43]} 20. b3 {[%emt 0:08:11]} Nd7 {[%emt 0:07:45]} 21. Be4 {[%emt 0:09:22]} Rxc1 {[%emt 0:04:59]} 22. Rxc1 {[%emt 0:01:12]} Qa3 {[%emt 0:01:27]} 23. Rc2 {[%emt 0:03:50]} Bxe4 {[%emt 0:05:20]} 24. Qxe4 {[%emt 0:02:58]} Nc5 {[%emt 0:00:12]} 25. Qe2 {[%emt 0:05:46]} Rd5 {[%emt 0:03:59]} 26. h3 {[%emt 0:00:56]} Kg7 {[%emt 0:01:47]} 27. Qe3 {[%emt 0:05:48]} Qb4 {[%emt 0:02:18]} 28. g3 {[%emt 0:05:06]} h6 {[%emt 0:08:01]} 29. Kg2 {[%emt 0:01:22]} a5 {[%emt 0:02:29]} 30. Nh2 {[%emt 0:10:34]} Qe4+ {[%emt 0:06:27]} 31. Qxe4 {[%emt 0:01:20]} Nxe4 {[%emt 0:00:05]} 32. Nf3 {[%emt 0:02:49]} b4 {[%emt 0:00:47]} 33. h4 {[%emt 0:01:27]} Nc3 {[%emt 0:00:47]} 34. Rd2 {[%emt 0:08:35]} Kf8 {[%emt 0:11:26]} 35. Rxd5 {[%emt 0:02:29]} exd5 {[%emt 0:00:05]} 36. Nd4 {[%emt 0:00:05]} Nxa2 {[%emt 0:00:29]} 37. Nc6 {[%emt 0:00:02]} a4 {[%emt 0:02:10]} 38. Nxb4 {[%emt 0:03:47]} Nxb4 {[%emt 0:00:15]} 39. bxa4 {[%emt 0:00:03]} Ke7 {[%emt 0:00:17]} 40. f4 {[%emt 0:00:10]} Ke6 {[%emt 0:00:40]} 41. Kf3 {[%emt 0:00:08]} h5 {[%emt 0:01:16]} 42. a5 {[%emt 0:00:03]} Kf5 {[%emt 0:00:32]} 43. Ke3 {[%emt 0:00:27]} Nc6 {[%emt 0:00:17]} 44. a6 {[%emt 0:00:04]} Kg4 {[%emt 0:00:52]} 45. Kf2 {[%emt 0:00:19]} d4 {[%emt 0:00:12]} 46. Kg2 {[%emt 0:00:03]} d3 {[%emt 0:04:48]} 47. Kf2 {[%emt 0:00:37]} d2 {[%emt 0:00:05]} 48. Ke2 {[%emt 0:00:04]} Kxg3 {[%emt 0:00:11]} 49. Kxd2 {[%emt 0:00:46]} Kxf4 {[%emt 0:01:38]} 50. Kc3 {[%emt 0:00:13]} Kxe5 {[%emt 0:00:05]} 51. Kc4 {[%emt 0:00:24]} Kd6 {[%emt 0:00:08]} 52. Kd3 {[%emt 0:00:14]} Nb4+ {[%emt 0:00:05]} 53. Kd4 0-1